bitfinex-derivatives/quotes_BTCF0:USTF0_20241019
["timestamp","ask_amount","ask_price","bid_price","bid_amount"]
[1729311432761,0.072986,68509.0,68508.0,0.08699]
[1729311433653,0.073986,68509.0,68508.0,0.08699]
[1729311434247,0.073986,68509.0,68508.0,0.30457073]
[1729311434451,0.434786,68509.0,68508.0,0.30457073]
[1729311434653,0.434786,68509.0,68508.0,0.31857073]
[1729311436357,0.434786,68509.0,68508.0,0.31851981]
[1729311436553,0.434786,68509.0,68508.0,0.29259632]
[1729311439159,0.434786,68509.0,68508.0,0.18846366]
[1729311439461,0.434786,68509.0,68508.0,0.27590075]
[1729311439854,0.434786,68509.0,68508.0,0.29285404]
[1729311440762,0.434786,68509.0,68508.0,0.36580684]
[1729311440958,0.434786,68509.0,68508.0,0.36550919]
[1729311443555,0.434786,68509.0,68508.0,0.21629719]
[1729311443759,1.472706,68509.0,68508.0,6e-08]
[1729311443964,0.072987,68508.0,68507.0,6e-08]
[1729311444161,0.072996,68500.0,68499.0,0.08750253]
[1729311444362,0.3608,68500.0,68497.0,0.08750253]
[1729311444659,0.3608,68500.0,68496.0,0.08748827]
[1729311444860,0.072999,68497.0,68496.0,0.08748827]
[1729311445062,0.072999,68497.0,68487.0,0.362]
[1729311445063,0.073,68496.0,68495.0,0.16047827]
[1729311445359,0.073001,68495.0,68494.0,0.08748827]
[1729311446360,0.073999,68497.0,68492.0,0.08748827]
[1729311446563,0.433803,68493.0,68492.0,0.08748827]
[1729311446755,0.433803,68493.0,68492.0,0.08758827]
[1729311447367,0.433803,68493.0,68492.0,0.0001]
[1729311448559,0.438803,68493.0,68492.0,0.0001]
[1729311455356,0.438803,68493.0,68492.0,0.0623]
[1729311456466,0.078003,68493.0,68492.0,0.0623]
[1729311458764,0.078003,68493.0,68492.0,0.14938388]
[1729311459667,0.078003,68493.0,68492.0,0.08718388]
[1729311460467,0.075003,68493.0,68492.0,0.08718388]
[1729311460665,0.077003,68493.0,68492.0,0.08718388]
[1729311461171,0.073003,68493.0,68492.0,0.08718388]
[1729311461371,0.077003,68493.0,68492.0,0.08718388]
[1729311462072,0.077003,68493.0,68492.0,0.0001]
[1729311463469,0.437803,68493.0,68492.0,0.0001]
[1729311463776,0.437803,68493.0,68492.0,0.08836332]
[1729311464277,0.437803,68493.0,68492.0,0.0001]
[1729311464670,0.436803,68493.0,68492.0,0.0001]
[1729311465778,0.436803,68493.0,68492.0,2.2e-07]
[1729311465779,1.036803,68493.0,68492.0,2.2e-07]
[1729311465966,0.073015,68482.0,68481.0,0.08748827]
[1729311466167,0.073115,68482.0,68481.0,0.17596331]
[1729311466469,0.073115,68482.0,68481.0,0.08847504]
[1729311466679,0.073115,68482.0,68481.0,0.17596331]
[1729311467177,0.074115,68482.0,68481.0,0.08847504]
[1729311468076,0.075115,68482.0,68481.0,0.08847504]
[1729311468571,0.074115,68482.0,68481.0,0.08847504]
[1729311468767,0.075115,68482.0,68481.0,0.08847504]
[1729311469375,0.075115,68482.0,68481.0,0.08951342]
[1729311469567,0.074115,68482.0,68481.0,0.08951342]
[1729311469771,0.075115,68482.0,68481.0,0.08951342]
[1729311471476,0.073019,68478.0,68477.0,0.04587164]
[1729311471674,0.073119,68478.0,68477.0,0.04587164]
[1729311472479,0.073119,68478.0,68477.0,0.00219061]
[1729311473168,0.074119,68478.0,68477.0,0.00219061]
[1729311473675,0.075119,68478.0,68477.0,0.00219061]
[1729311476977,0.075119,68478.0,68477.0,0.07521061]
[1729311477178,0.0021,68478.0,68477.0,0.07521061]
[1729311478178,0.0021,68478.0,68477.0,0.0797772]
[1729311479075,0.0011,68478.0,68477.0,0.0797772]
[1729311479271,0.0021,68478.0,68477.0,0.0797772]
[1729311479575,0.073019,68479.0,68478.0,0.073018]
[1729311479776,0.073019,68479.0,68478.0,0.50502338]
[1729311480979,0.074019,68479.0,68478.0,0.50502338]
[1729311481986,0.074019,68479.0,68478.0,0.27706784]
[1729311482180,0.075019,68479.0,68478.0,0.27706784]
[1729311482588,0.075019,68479.0,68478.0,0.27250125]
[1729311482776,0.075019,68479.0,68478.0,0.2770678]
[1729311483385,0.075019,68479.0,68478.0,0.2040498]
[1729311483687,0.075019,68479.0,68478.0,0.2770688]
[1729311485184,0.075019,68479.0,68478.0,0.2040498]
[1729311486484,0.075019,68479.0,68478.0,0.09557327]
[1729311488382,0.075019,68479.0,68478.0,0.1219324]
[1729311490293,0.075019,68479.0,68478.0,0.11736585]
[1729311490591,0.075019,68479.0,68478.0,0.1219324]
[1729311490783,0.075019,68479.0,68478.0,0.09557327]
[1729311491188,0.075019,68479.0,68478.0,0.09100672]
[1729311491388,0.075019,68479.0,68478.0,0.17847898]
[1729311491887,0.075019,68479.0,68478.0,0.18002217]
[1729311493694,0.075019,68479.0,68478.0,0.09254991]
[1729311494492,0.075019,68479.0,68478.0,0.33101203]
[1729311495496,0.002,68479.0,68478.0,0.33101203]
[1729311496400,0.075019,68479.0,68478.0,0.33101203]
[1729311499094,0.002,68479.0,68477.0,0.00219061]
[1729311499294,0.073119,68478.0,68477.0,0.00219061]
[1729311500190,0.073119,68478.0,68477.0,0.33228221]
[1729311500896,0.073119,68478.0,68477.0,0.44912892]
[1729311501096,0.074119,68478.0,68477.0,0.44912892]
[1729311501596,0.074119,68478.0,68477.0,0.09450107]
[1729311502198,0.075119,68478.0,68477.0,0.09450107]
[1729311502395,0.075119,68478.0,68477.0,0.09451869]
[1729311503693,0.075119,68478.0,68477.0,0.16753869]
[1729311509497,0.075119,68478.0,68477.0,0.40522966]
[1729311510701,0.075119,68478.0,68477.0,0.52207637]
[1729311511111,0.075119,68478.0,68477.0,0.40522966]
[1729311511297,0.0021,68478.0,68477.0,0.40522966]
[1729311511495,0.075119,68478.0,68477.0,0.40522966]
[1729311514698,0.075119,68478.0,68477.0,0.33220966]
[1729311515698,0.075119,68478.0,68477.0,0.33001905]
[1729311516297,0.075119,68478.0,68477.0,0.47493186]
[1729311516500,0.075119,68478.0,68477.0,0.20231689]
[1729311519004,0.075119,68478.0,68477.0,0.09232808]
[1729311524404,0.075119,68478.0,68477.0,0.32955051]
[1729311524603,0.075119,68478.0,68477.0,0.43182133]
[1729311525199,0.075119,68478.0,68477.0,0.32955051]
[1729311525403,0.074119,68478.0,68477.0,0.32955051]
[1729311525608,0.075119,68478.0,68477.0,0.32955051]
[1729311530915,0.435919,68478.0,68477.0,0.32955051]
[1729311531219,0.435919,68478.0,68477.0,0.32938286]
[1729311536224,0.435919,68478.0,68477.0,0.32887858]
[1729311536724,0.38477138,68478.0,68477.0,0.32887858]
[1729311537319,0.38477138,68478.0,68477.0,0.43110832]
[1729311539415,0.38477138,68478.0,68477.0,0.10222974]
[1729311539619,0.07302,68477.0,68476.0,0.106221]
[1729311540129,0.07312,68477.0,68476.0,0.106221]
[1729311540830,0.07412,68477.0,68476.0,0.106221]
[1729311541527,0.07512,68477.0,68476.0,0.106221]
[1729311542731,0.0021,68477.0,68476.0,0.106221]
[1729311542932,0.0021,68477.0,68476.0,0.11078759]
[1729311543830,0.07512,68477.0,68476.0,0.11078759]
[1729311544732,0.0021,68477.0,68476.0,0.11078759]
[1729311544923,0.0001,68482.0,68476.0,1.14890759]
[1729311545123,0.433812,68485.0,68484.0,0.073013]
[1729311545124,0.36156,68485.0,68484.0,0.073013]
[1729311545330,0.3608,68485.0,68484.0,0.073013]
[1729311546532,0.073011,68486.0,68485.0,0.073012]
[1729311546721,0.073011,68486.0,68485.0,0.39907022]
[1729311548224,0.073011,68486.0,68485.0,0.32605822]
[1729311548622,0.073011,68486.0,68485.0,0.42819352]
[1729311548932,0.074011,68486.0,68485.0,0.4282294]
[1729311549123,0.075011,68486.0,68485.0,0.4282294]
[1729311549834,0.075011,68486.0,68485.0,0.19989059]
[1729311551629,0.435811,68486.0,68485.0,0.19989059]
[1729311552329,0.434811,68486.0,68485.0,0.19989059]
[1729311552529,0.435811,68486.0,68485.0,0.19989059]
[1729311553035,0.435811,68486.0,68485.0,0.22621243]
[1729311554327,0.434811,68486.0,68485.0,0.22621243]
[1729311554632,0.435811,68486.0,68485.0,0.22608644]
[1729311554823,0.435811,68486.0,68485.0,0.1175144]
[1729311555229,0.434811,68486.0,68485.0,0.1175144]
[1729311555429,0.435811,68486.0,68485.0,0.1175144]
[1729311557636,0.434811,68486.0,68485.0,0.1175144]
[1729311557832,0.435811,68486.0,68485.0,0.1175144]
[1729311560330,0.435811,68486.0,68485.0,0.09933384]
[1729311560528,0.435811,68486.0,68485.0,0.1904061]
[1729311561730,0.075011,68486.0,68485.0,0.09933384]
[1729311562740,0.075011,68486.0,68485.0,0.02632184]
[1729311562936,0.075011,68486.0,68485.0,0.04374625]
[1729311563240,0.074011,68486.0,68485.0,0.04374625]
[1729311563540,0.075011,68486.0,68485.0,0.04374625]
[1729311565345,0.002,68486.0,68484.0,0.073013]
[1729311565646,0.073112,68485.0,68484.0,0.073013]
[1729311565941,0.073112,68485.0,68484.0,0.07757905]
[1729311566341,0.073112,68485.0,68484.0,0.073013]
[1729311566641,0.073112,68485.0,68484.0,0.07757907]
[1729311566836,0.074112,68485.0,68484.0,0.07757907]
[1729311567435,0.075112,68485.0,68484.0,0.07757907]
[1729311569647,0.0239719,68485.0,68484.0,0.40356219]
[1729311569845,0.0021,68485.0,68484.0,0.40356219]
[1729311570346,0.075112,68485.0,68484.0,0.40356219]
[1729311572449,0.075112,68485.0,68484.0,0.520424]
[1729311572744,0.075112,68485.0,68484.0,0.40356219]
[1729311573542,0.075112,68485.0,68484.0,0.520424]
[1729311574638,0.075112,68485.0,68484.0,0.52042628]
[1729311575456,0.075112,68485.0,68484.0,0.33054919]
[1729311575643,0.075112,68485.0,68484.0,0.44741634]
[1729311576239,0.075112,68485.0,68484.0,0.44285027]
[1729311576646,0.075112,68485.0,68484.0,0.04382635]
[1729311584854,0.075112,68485.0,68484.0,0.44194149]
[1729311585357,0.075112,68485.0,68484.0,0.51495449]
[1729311587046,0.075112,68485.0,68484.0,0.39808734]
[1729311588966,0.075112,68485.0,68484.0,0.32507434]
[1729311590055,0.075112,68485.0,68484.0,0.42732846]
[1729311591655,0.0021,68485.0,68483.0,0.073014]
[1729311591959,0.073113,68484.0,68483.0,0.073014]
[1729311593757,0.075113,68484.0,68483.0,0.073014]
[1729311597258,0.0021,68484.0,68483.0,0.073014]
[1729311597463,0.0021,68484.0,68483.0,0.105014]
[1729311597760,0.0021,68484.0,68483.0,0.10958011]
[1729311597953,0.0021,68484.0,68483.0,0.105014]
[1729311598152,0.0021,68484.0,68483.0,0.15340144]
[1729311598862,0.0021,68484.0,68483.0,0.15340136]
[1729311599748,0.0021,68484.0,68483.0,0.43440999]
[1729311600563,0.0011,68484.0,68483.0,0.43440999]
[1729311600862,0.0021,68484.0,68483.0,0.43440999]
[1729311602264,0.02610484,68491.0,68483.0,0.43437512]
[1729311602566,0.073005,68491.0,68490.0,0.073007]
[1729311602751,0.073005,68491.0,68490.0,0.39780214]
[1729311603957,0.074005,68491.0,68490.0,0.39780214]
[1729311604456,0.074005,68491.0,68490.0,0.50001168]
[1729311604658,0.075005,68491.0,68490.0,0.50001168]
[1729311605258,0.074005,68491.0,68490.0,0.50001168]
[1729311605460,0.074005,68491.0,68490.0,0.37406033]
[1729311605662,0.075005,68491.0,68490.0,0.27185079]
[1729311605965,0.002,68491.0,68490.0,0.27185079]
[1729311606655,0.002,68491.0,68490.0,0.073007]
[1729311610174,0.001,68491.0,68490.0,0.073007]
[1729311610364,0.002,68491.0,68490.0,0.073007]
[1729311610874,0.075005,68491.0,68490.0,0.073007]
[1729311611370,0.075005,68491.0,68490.0,0.09976968]
[1729311614673,0.002,68491.0,68490.0,0.19041478]
[1729311615070,0.3629903,68505.0,68501.0,0.072995]
[1729311615273,0.3629903,68505.0,68504.0,0.072992]
[1729311615567,0.3629903,68505.0,68504.0,0.25099953]
[1729311615779,0.3629903,68505.0,68504.0,0.16344544]
[1729311616364,0.4369813,68505.0,68504.0,0.25091456]
[1729311617468,0.4369813,68505.0,68504.0,0.16344544]
[1729311618069,0.4379813,68505.0,68504.0,0.16344544]
[1729311619273,0.0771813,68505.0,68504.0,0.16344544]
[1729311619776,0.0771813,68505.0,68504.0,0.16289144]
[1729311620477,0.0761813,68505.0,68504.0,0.16289144]
[1729311621473,0.0031903,68505.0,68504.0,0.16289144]
[1729311621673,0.0031903,68505.0,68504.0,0.16745608]
[1729311621874,0.0031903,68505.0,68504.0,0.072992]
[1729311622980,0.0031903,68505.0,68504.0,0.07755672]
[1729311623181,0.0031903,68505.0,68504.0,0.16727892]
[1729311624784,0.0031903,68505.0,68504.0,0.16250668]
[1729311624974,0.0031903,68505.0,68504.0,0.16707106]
[1729311626278,0.0031903,68505.0,68504.0,0.16707105]
[1729311627184,0.001,68505.0,68504.0,0.16707105]
[1729311628882,0.001,68505.0,68504.0,0.072992]
[1729311629285,0.001,68505.0,68504.0,0.07755637]
[1729311631780,0.073991,68505.0,68504.0,0.00456437]
[1729311632188,0.001,68505.0,68500.0,0.072995]
[1729311632388,0.072995,68501.0,68500.0,0.072995]
[1729311632583,0.072995,68501.0,68500.0,0.07755984]
[1729311634293,0.433795,68501.0,68500.0,0.07756006]
[1729311634592,0.433795,68501.0,68500.0,0.072995]
[1729311634792,0.072999,68497.0,68496.0,0.073099]
[1729311634992,0.072999,68497.0,68496.0,0.07766415]
[1729311636782,0.072999,68497.0,68496.0,0.16769066]
[1729311636979,0.072999,68497.0,68496.0,0.16312551]
[1729311637178,0.073999,68497.0,68496.0,0.16769076]
[1729311637383,0.073999,68497.0,68496.0,0.16312551]
[1729311637589,0.073999,68497.0,68496.0,0.16769076]
[1729311638890,0.073999,68497.0,68496.0,0.16771886]
[1729311640085,0.073999,68497.0,68496.0,0.25518798]
[1729311640286,0.073999,68497.0,68496.0,0.16771886]
[1729311640587,0.073999,68497.0,68496.0,0.25518798]
[1729311641488,0.073999,68497.0,68496.0,0.16771886]
[1729311643794,0.073999,68497.0,68496.0,0.50208534]
[1729311644390,0.073999,68497.0,68496.0,0.3998758]
[1729311644687,0.073999,68497.0,68496.0,0.19758261]
[1729311645000,0.073999,68497.0,68496.0,0.09015461]
[1729311645495,0.434799,68497.0,68496.0,0.09015461]
[1729311646399,0.434799,68497.0,68496.0,0.17762344]
[1729311646699,0.434799,68497.0,68496.0,0.09015461]
[1729311646997,0.433799,68497.0,68496.0,0.09015461]
[1729311647187,0.434799,68497.0,68496.0,0.09015461]
[1729311647386,0.434799,68497.0,68496.0,0.17760077]
[1729311648393,0.434799,68497.0,68496.0,0.1778796]
[1729311648595,0.434799,68497.0,68496.0,0.09043344]
[1729311650795,1.471759,68497.0,68496.0,0.09043344]
[1729311650991,1.472759,68497.0,68496.0,0.09043344]
[1729311651200,1.472759,68497.0,68496.0,0.08623345]
[1729311651498,1.472759,68497.0,68495.0,0.07281929]
[1729311651708,0.1053,68496.0,68495.0,0.07281929]
[1729311651898,0.073012,68485.0,68484.0,0.3608]
[1729311652099,0.073112,68485.0,68484.0,0.43837893]
[1729311653198,0.073112,68485.0,68484.0,0.433813]
[1729311653390,0.073112,68485.0,68484.0,0.43837899]
[1729311654706,0.074112,68485.0,68484.0,0.43837899]
[1729311657103,0.074112,68485.0,68484.0,0.07757899]
[1729311659107,0.074112,68485.0,68484.0,0.18531292]
[1729311659108,0.0011,68485.0,68484.0,0.18531292]
[1729311660507,0.074112,68485.0,68484.0,0.18531292]
[1729311660900,0.074112,68485.0,68484.0,0.18074693]
[1729311661105,0.074112,68485.0,68484.0,0.18531292]
[1729311661300,0.074112,68485.0,68484.0,0.18487315]
[1729311666009,0.074112,68485.0,68484.0,0.07757899]
[1729311666310,0.074112,68485.0,68484.0,0.37704734]
[1729311666706,0.0011,68485.0,68484.0,0.50169398]
[1729311666916,0.0011,68485.0,68484.0,0.07757899]
[1729311669413,0.38757303,68494.0,68493.0,0.073003]
[1729311669716,0.46057503,68494.0,68493.0,0.073003]
[1729311669913,0.09977503,68494.0,68493.0,0.073003]
[1729311670813,0.074002,68494.0,68493.0,0.073003]
[1729311673619,0.073002,68494.0,68493.0,0.11674594]
[1729311674008,0.073002,68494.0,68493.0,0.27033557]
[1729311674716,0.073002,68494.0,68493.0,0.19733257]
[1729311679514,0.673002,68494.0,68493.0,0.19733257]
[1729311679911,0.673002,68494.0,68493.0,0.09002556]
[1729311680113,0.673002,68494.0,68493.0,0.19750902]
[1729311680416,0.673002,68494.0,68493.0,0.19765716]
[1729311680417,0.073002,68494.0,68493.0,0.19765716]
[1729311680615,0.673002,68494.0,68493.0,0.19765716]
[1729311680815,0.673002,68494.0,68493.0,0.19765732]
[1729311681921,0.7153018,68494.0,68486.0,0.0001]
[1729311682118,0.07301,68487.0,68486.0,0.0001]
[1729311682317,0.07311,68487.0,68486.0,0.00466596]
[1729311683117,0.07311,68487.0,68486.0,0.0001]
[1729311689021,0.0001,68487.0,68486.0,0.27085583]
[1729311689217,0.0001,68487.0,68486.0,0.50213047]
[1729311689521,0.0001,68487.0,68486.0,0.37747644]
[1729311689709,0.0001,68487.0,68486.0,0.17973161]
[1729311689915,0.0001,68487.0,68486.0,0.37714582]
[1729311691823,0.0001,68487.0,68486.0,0.50188454]
[1729311692521,0.0001,68487.0,68486.0,0.52856869]
[1729311692717,0.0001,68487.0,68486.0,0.42651404]
[1729311694423,0.0001,68487.0,68486.0,0.42651379]
[1729311694725,0.0001,68487.0,68486.0,0.42194808]
[1729311694931,0.0001,68487.0,68486.0,0.4265138]
[1729311695320,0.0001,68487.0,68486.0,0.56828342]
[1729311697028,0.0001,68487.0,68486.0,0.10436087]
[1729311698528,0.0001,68487.0,68486.0,0.46516087]
[1729311701727,0.07311,68487.0,68486.0,0.46516087]
[1729311702119,0.0001,68487.0,68486.0,0.46516087]
[1729311703727,0.0001,68487.0,68486.0,0.10436087]
[1729311704124,0.0001,68487.0,68486.0,0.42636221]
[1729311704332,0.0001,68487.0,68486.0,0.42636138]
[1729311704531,0.0001,68487.0,68486.0,0.47806237]
[1729311704834,0.0001,68487.0,68486.0,0.42622686]
[1729311705431,0.0001,68487.0,68486.0,0.56814078]
[1729311705732,0.07311,68487.0,68486.0,0.30165969]
[1729311705932,0.07311,68487.0,68486.0,0.50181679]
[1729311706233,0.07311,68487.0,68486.0,0.39965287]
[1729311706435,0.07311,68487.0,68486.0,0.53710435]
[1729311706635,0.07311,68487.0,68486.0,0.54167021]
[1729311706935,0.07311,68487.0,68486.0,0.54166445]
[1729311707727,0.07311,68487.0,68486.0,0.39965288]
[1729311708138,0.43391,68487.0,68486.0,0.32207602]
[1729311709335,0.43391,68487.0,68486.0,0.32331121]
[1729311709937,0.43391,68487.0,68486.0,0.19822342]
[1729311712644,0.43391,68487.0,68486.0,0.42538557]
[1729311712933,0.45988932,68487.0,68486.0,0.3232086]
[1729311713336,0.45988932,68487.0,68486.0,0.19822342]
[1729311714130,0.45988932,68487.0,68486.0,0.42529101]
[1729311714540,0.45988932,68487.0,68486.0,0.30027323]
[1729311716043,0.45988932,68487.0,68486.0,0.42523582]
[1729311716928,0.45988932,68487.0,68486.0,0.30027323]
[1729311717136,0.45988932,68487.0,68486.0,0.19811254]
[1729311717734,0.43391,68487.0,68486.0,0.19811254]
[1729311719142,0.43391,68487.0,68486.0,0.0001]
[1729311719537,0.43391,68487.0,68486.0,0.04387937]
[1729311721051,0.4600985,68487.0,68486.0,0.04387937]
[1729311722443,0.4600985,68487.0,68486.0,0.0001]
[1729311725060,0.0992985,68487.0,68486.0,0.0001]
[1729311725264,0.4600985,68487.0,68486.0,0.0001]
[1729311727263,0.4600985,68487.0,68486.0,0.0905025]
[1729311731259,0.4600985,68487.0,68486.0,0.19823684]
[1729311731851,1.0600985,68487.0,68486.0,0.0905025]
[1729311732061,1.4981385,68487.0,68486.0,0.0905025]
[1729311733256,1.4981385,68487.0,68486.0,0.16346613]
[1729311733558,1.4981385,68487.0,68486.0,0.16385711]
[1729311734362,1.4981385,68487.0,68486.0,0.0001]
[1729311735563,1.1373385,68487.0,68486.0,0.0001]
[1729311735763,1.8589385,68487.0,68486.0,0.0001]
[1729311739367,1.1373385,68487.0,68486.0,0.0001]
[1729311739568,1.8589385,68487.0,68486.0,0.0001]
[1729311740365,0.073017,68480.0,68469.0,0.0437716]
[1729311740573,0.07303,68468.0,68467.0,0.0738716]
[1729311740770,0.07313,68468.0,68467.0,0.0301]
[1729311741457,0.07313,68468.0,68463.0,0.04593657]
[1729311741658,0.07304,68459.0,68457.0,0.04374551]
[1729311741856,0.433934,68464.0,68456.0,0.05836213]
[1729311741857,0.3609,68458.0,68456.0,0.05836213]
[1729311742061,0.073142,68457.0,68456.0,0.05836213]
[1729311742262,0.0001,68457.0,68456.0,0.09147784]
[1729311742465,0.073142,68457.0,68456.0,0.09147784]
[1729311745074,0.073142,68457.0,68456.0,0.16908876]
[1729311745275,0.073142,68457.0,68456.0,0.09147784]
[1729311745874,0.433942,68457.0,68456.0,0.09147784]
[1729311746076,0.433942,68457.0,68456.0,0.17904132]
[1729311746570,0.433942,68457.0,68456.0,0.09147784]
[1729311748369,0.3609,68457.0,68456.0,0.07274541]
[1729311748569,0.073043,68456.0,68455.0,0.0305]
[1729311748768,0.073143,68456.0,68455.0,0.12182725]
[1729311748965,0.073143,68456.0,68455.0,0.10324836]
[1729311749372,0.073143,68456.0,68455.0,0.1032374]
[1729311751374,0.073143,68456.0,68455.0,0.0305]
[1729311752571,0.073143,68456.0,68455.0,0.12186823]
[1729311752970,0.433943,68456.0,68455.0,0.12186823]
[1729311754669,0.073143,68456.0,68455.0,0.12186823]
[1729311754883,0.433943,68456.0,68455.0,0.12186823]
[1729311755772,0.433943,68456.0,68455.0,0.12188856]
[1729311756367,0.073143,68456.0,68455.0,0.12188856]
[1729311756567,0.433943,68456.0,68455.0,0.12188856]
[1729311758873,0.073143,68456.0,68455.0,0.12188856]
[1729311759076,0.433943,68456.0,68455.0,0.12188856]
[1729311759271,0.073143,68456.0,68455.0,0.12188856]
[1729311759472,0.433943,68456.0,68453.0,0.07277341]
[1729311759774,0.433943,68456.0,68449.0,0.08985145]
[1729311759775,0.073048,68451.0,68450.0,0.08756348]
[1729311759976,0.073148,68451.0,68450.0,0.09159637]
[1729311760376,0.073148,68451.0,68450.0,0.17915985]
[1729311761180,0.073148,68451.0,68450.0,0.09159637]
[1729311761384,0.433948,68451.0,68450.0,0.09159637]
[1729311762467,0.073049,68450.0,68449.0,0.07281541]
[1729311762671,0.0001,68450.0,68449.0,0.09133767]
[1729311762872,0.073149,68450.0,68449.0,0.16415604]
[1729311763182,0.073149,68450.0,68449.0,0.09133767]
[1729311763875,0.073149,68450.0,68449.0,0.0728204]
[1729311764082,0.073149,68450.0,68449.0,0.16415429]
[1729311764582,0.073149,68450.0,68449.0,0.09133389]
[1729311765174,0.073149,68450.0,68449.0,0.09132808]
[1729311767685,0.09904132,68450.0,68449.0,0.09132808]
[1729311770488,0.09904132,68450.0,68449.0,0.17885879]
[1729311770789,0.09904132,68450.0,68449.0,0.09132808]
[1729311775579,0.09904132,68450.0,68449.0,0.20040049]
[1729311777390,0.073149,68450.0,68449.0,0.20040049]
[1729311777585,0.073149,68450.0,68449.0,0.27345049]
[1729311778481,0.073149,68450.0,68449.0,0.20040049]
[1729311779575,0.073149,68450.0,68449.0,0.29172962]
[1729311779888,0.073149,68450.0,68449.0,0.20040154]
[1729311783389,0.073149,68450.0,68449.0,0.22694188]
[1729311784989,0.073149,68450.0,68449.0,0.29999188]
[1729311785489,0.0001,68450.0,68449.0,0.40215257]
[1729311785694,0.0001,68450.0,68449.0,0.53295487]
[1729311786194,0.0001,68450.0,68449.0,0.40672092]
[1729311787382,0.073149,68450.0,68449.0,0.16257167]
[1729311788093,0.073149,68450.0,68449.0,0.10415869]
[1729311788292,0.073149,68450.0,68449.0,0.16257166]
[1729311792002,0.073149,68450.0,68449.0,0.15800332]
[1729311792203,0.0001,68450.0,68449.0,0.16257162]
[1729311792699,0.0001,68450.0,68449.0,0.10415864]
[1729311793594,0.073149,68450.0,68449.0,0.10415864]
[1729311794002,0.0001,68450.0,68449.0,0.10415864]
[1729311794401,0.0001,68450.0,68449.0,0.5323782]
[1729311795301,0.0001,68450.0,68449.0,0.40618832]
[1729311795496,0.0001,68450.0,68449.0,0.43020935]
[1729311797596,0.0001,68454.0,68449.0,0.50055454]
[1729311797804,0.073047,68452.0,68451.0,0.18984029]
[1729311798001,0.073047,68452.0,68451.0,0.52025476]
[1729311798304,0.073047,68452.0,68451.0,0.40346247]
[1729311799499,0.073047,68452.0,68451.0,0.33041447]
[1729311800106,0.073047,68452.0,68451.0,0.32584617]
[1729311800310,0.073047,68452.0,68451.0,0.33041445]
[1729311801099,0.073047,68452.0,68451.0,0.32911315]
[1729311801608,0.073047,68452.0,68451.0,0.32454487]
[1729311802508,0.0001,68454.0,68451.0,0.32454504]
[1729311802709,0.073046,68453.0,68452.0,0.32454504]
[1729311804316,0.073046,68453.0,68452.0,0.30114082]
[1729311805311,0.073046,68453.0,68452.0,0.42675161]
[1729311808316,0.073046,68453.0,68452.0,0.32455183]
[1729311808916,0.073046,68453.0,68452.0,0.39759883]
[1729311809416,0.073046,68453.0,68452.0,0.073047]
[1729311811515,0.0001,68454.0,68451.0,0.05842052]
[1729311811717,0.073147,68452.0,68451.0,0.05842052]
[1729311811918,0.073147,68452.0,68451.0,0.13146852]
[1729311814214,0.073147,68452.0,68451.0,0.073048]
[1729311815727,0.073147,68452.0,68451.0,0.13150942]
[1729311815926,0.073147,68452.0,68451.0,0.13151067]
[1729311817425,0.073147,68452.0,68451.0,0.51509419]
[1729311817630,0.0001,68452.0,68451.0,0.3983019]
[1729311818128,0.0001,68452.0,68451.0,0.51522736]
[1729311818328,0.073147,68452.0,68451.0,0.51522736]
[1729311819526,0.073147,68452.0,68451.0,0.3983019]
[1729311819724,0.073147,68452.0,68451.0,0.51522378]
[1729311820725,0.073147,68452.0,68451.0,0.51522073]
[1729311821726,0.073147,68452.0,68451.0,0.3983019]
[1729311821925,0.0001,68452.0,68451.0,0.3983019]
[1729311822229,0.0001,68452.0,68451.0,0.54083945]
[1729311822432,0.073147,68452.0,68451.0,0.54083945]
[1729311823825,0.073147,68452.0,68451.0,0.3983019]
[1729311824531,0.073147,68452.0,68451.0,0.54081596]
[1729311825328,0.073147,68452.0,68451.0,0.3252539]
[1729311825519,0.073147,68452.0,68451.0,0.19937556]
[1729311826323,0.073051,68448.0,68447.0,0.0003]
[1729311826530,0.433951,68448.0,68447.0,0.23393106]
[1729311826734,0.433951,68448.0,68447.0,0.30126157]
[1729311827121,0.433951,68448.0,68447.0,0.19898007]
[1729311827324,0.433951,68448.0,68447.0,0.28953423]
[1729311827529,0.433951,68448.0,68447.0,0.19879125]
[1729311830340,0.433951,68448.0,68447.0,0.09085416]
[1729311830639,0.433951,68448.0,68447.0,0.19876303]
[1729311831043,0.433951,68448.0,68447.0,0.09085416]
[1729311831340,0.073151,68448.0,68447.0,0.19872214]
[1729311831842,0.09977474,68448.0,68447.0,0.19872214]
[1729311832341,0.073151,68448.0,68447.0,0.19872214]
[1729311832535,0.073151,68448.0,68447.0,0.0003]
[1729311839542,0.073151,68448.0,68447.0,0.19868775]
[1729311842834,0.073151,68448.0,68447.0,0.30096925]
[1729311844238,0.073151,68448.0,68447.0,0.30098297]
[1729311845442,0.073151,68448.0,68447.0,0.19870147]
[1729311846660,0.433951,68448.0,68447.0,0.19870147]
[1729311847039,0.433951,68448.0,68447.0,0.30098297]
[1729311847247,0.433951,68448.0,68447.0,0.42625955]
[1729311847649,0.433951,68448.0,68447.0,0.0003]
[1729311850048,0.073151,68448.0,68447.0,0.0003]
[1729311850248,0.433951,68448.0,68447.0,0.0003]
[1729311853246,0.433951,68448.0,68447.0,0.05870545]
[1729311853448,0.433951,68448.0,68447.0,0.0003]
[1729311853953,0.073151,68448.0,68447.0,0.05870545]
[1729311854548,0.073151,68448.0,68447.0,0.3241848]
[1729311854853,0.073151,68448.0,68447.0,0.3011182]
[1729311855358,0.073151,68448.0,68447.0,0.32430299]
[1729311858646,0.073151,68448.0,68447.0,0.32439945]
[1729311859554,0.073151,68448.0,68447.0,0.44131628]
[1729311860057,0.073151,68448.0,68447.0,0.32439945]
[1729311860259,0.0001,68448.0,68447.0,0.540053]
[1729311860651,0.073151,68448.0,68447.0,0.540053]
[1729311861259,0.073151,68448.0,68447.0,0.39579906]
[1729311861663,0.073151,68448.0,68447.0,0.073352]
[1729311862461,0.073151,68448.0,68447.0,0.23657049]
[1729311862946,0.073151,68448.0,68447.0,0.26289563]
[1729311863148,0.073151,68448.0,68447.0,0.17275811]
[1729311864047,0.073151,68448.0,68447.0,0.26287244]
[1729311864450,0.073151,68448.0,68447.0,0.09967714]